bitfinex/quotes_BTCUSD_20250512
["timestamp","ask_amount","ask_price","bid_price","bid_amount"]
[1747045664592,0.02289034,104250.0,104240.0,2.39132435]
[1747045664811,0.02289034,104250.0,104240.0,2.41472435]
[1747045665282,0.02289034,104250.0,104240.0,1.79404435]
[1747045665522,0.02289034,104250.0,104240.0,3.91467235]
[1747045666525,0.02289034,104250.0,104240.0,3.88979635]
[1747045666789,0.02289034,104250.0,104240.0,3.00942035]
[1747045668821,0.02289034,104250.0,104240.0,2.59312035]
[1747045674151,0.02289034,104250.0,104240.0,2.56972035]
[1747045674365,0.02289034,104250.0,104240.0,3.01152035]
[1747045675503,0.07249034,104250.0,104240.0,2.35451535]
[1747045675848,0.02289034,104250.0,104240.0,2.35451535]
[1747045676056,0.02289034,104250.0,104240.0,1.74724435]
[1747045676254,0.07079034,104250.0,104240.0,2.64989935]
[1747045676731,0.02289034,104250.0,104240.0,2.64989935]
[1747045679795,0.02289034,104250.0,104240.0,2.69909935]
[1747045682484,0.02289034,104250.0,104240.0,2.64989935]
[1747045682690,0.02289034,104250.0,104240.0,3.09989935]
[1747045683838,0.06949034,104250.0,104240.0,3.09989935]
[1747045684557,0.04599034,104250.0,104240.0,3.09989935]
[1747045684961,0.07149034,104250.0,104240.0,3.09989935]
[1747045685162,0.07149034,104250.0,104240.0,3.51401935]
[1747045686694,0.07149034,104250.0,104240.0,3.95323635]
[1747045686840,0.07149034,104250.0,104240.0,3.81793635]
[1747045687474,0.02289034,104250.0,104240.0,3.81793635]
[1747045687648,0.07019034,104250.0,104240.0,3.81793635]
[1747045687884,0.07019034,104250.0,104240.0,3.71059635]
[1747045689360,0.07019034,104250.0,104240.0,3.54683935]
[1747045690895,0.07019034,104250.0,104240.0,3.50996635]
[1747045691543,0.07019034,104250.0,104240.0,3.05996635]
[1747045693586,0.07019034,104250.0,104240.0,3.08874235]
[1747045694515,0.07019034,104250.0,104240.0,3.10874235]
[1747045694953,0.06654245,104250.0,104240.0,3.10874235]
[1747045696788,0.01924245,104250.0,104240.0,3.10874235]
[1747045697219,0.01924245,104250.0,104240.0,2.25854035]
[1747045697419,0.01924245,104250.0,104240.0,5.25854035]
[1747045698237,0.0507,104270.0,104260.0,0.22060122]
[1747045698598,0.05084701,104270.0,104260.0,2.8751031]
[1747045698818,0.05084701,104270.0,104260.0,3.2151031]
[1747045699255,0.05084701,104270.0,104260.0,3.62964395]
[1747045699469,0.05084701,104270.0,104260.0,3.40449995]
[1747045699685,0.05184701,104270.0,104260.0,3.40449995]
[1747045699922,0.05384701,104270.0,104260.0,3.40449995]
[1747045700423,0.05384701,104270.0,104260.0,2.21165995]
[1747045700567,0.05384701,104270.0,104260.0,2.05004995]
[1747045701166,0.05384701,104270.0,104260.0,2.06428801]
[1747045701494,0.05384701,104270.0,104260.0,2.05004995]
[1747045701703,0.05384701,104270.0,104260.0,2.46634995]
[1747045702466,0.05384701,104270.0,104260.0,2.90924195]
[1747045708226,0.05384701,104270.0,104260.0,2.28613695]
[1747045708427,0.05384701,104270.0,104260.0,3.50007695]
[1747045708646,0.05384701,104270.0,104260.0,3.17363995]
[1747045710172,0.05034701,104270.0,104260.0,3.17363995]
[1747045710742,0.05034701,104270.0,104260.0,2.69021695]
[1747045710914,0.1824748,104290.0,104280.0,0.55096981]
[1747045711061,0.18438862,104290.0,104280.0,0.90647839]
[1747045712026,0.18938862,104290.0,104280.0,0.90747839]
[1747045712436,0.19338862,104290.0,104280.0,0.90847839]
[1747045713840,0.24138862,104290.0,104280.0,0.89888929]
[1747045714043,0.2394748,104290.0,104280.0,0.77213991]
[1747045714249,0.2394748,104290.0,104280.0,0.89884938]
[1747045714645,0.2394748,104290.0,104280.0,0.90838691]
[1747045715501,0.2394748,104290.0,104280.0,0.9179761]
[1747045720476,0.2394748,104290.0,104280.0,0.9179762]
[1747045721175,0.2394748,104290.0,104280.0,0.9275653]
[1747045725685,0.2394748,104290.0,104280.0,0.89879744]
[1747045725894,0.2394748,104290.0,104280.0,0.91797629]
[1747045726106,0.2394748,104290.0,104280.0,0.908387]
[1747045726500,0.2394748,104290.0,104280.0,0.91797647]
[1747045726742,0.2394748,104290.0,104280.0,0.92756585]
[1747045726999,0.2394748,104290.0,104280.0,0.93715514]
[1747045728644,0.2394748,104290.0,104280.0,0.94674424]
[1747045731344,0.24906335,104290.0,104280.0,0.94674424]
[1747045731547,0.26824026,104290.0,104280.0,0.94674424]
[1747045731765,0.26824026,104290.0,104280.0,0.94674433]
[1747045735295,0.26824026,104290.0,104280.0,0.94674378]
[1747045736664,0.26824026,104290.0,104280.0,0.93715477]
[1747045738316,0.26824026,104290.0,104280.0,0.94674387]
[1747045741073,0.26824026,104290.0,104280.0,0.93715477]
[1747045741259,0.25865199,104290.0,104280.0,0.806337]
[1747045741691,0.25865199,104290.0,104280.0,0.81592619]
[1747045742872,0.25865199,104290.0,104280.0,0.82551529]
[1747045747458,0.25865199,104290.0,104280.0,0.81592619]
[1747045750516,0.25865199,104290.0,104280.0,0.806337]
[1747045751884,0.25865199,104290.0,104280.0,0.81592619]
[1747045752093,0.25865199,104290.0,104280.0,0.82551529]
[1747045755223,0.25865199,104290.0,104280.0,0.82551483]
[1747045756364,0.07617627,104290.0,104280.0,0.82551437]
[1747045756620,0.08576473,104290.0,104280.0,0.82551437]
[1747045757531,0.02817618,104290.0,104280.0,0.82551437]
[1747045757737,0.03776464,104290.0,104280.0,0.82551437]
[1747045758150,0.03776464,104290.0,104280.0,1.22551437]
[1747045759336,0.04735319,104290.0,104280.0,1.22551437]
[1747045759995,0.04735319,104290.0,104280.0,1.22751437]
[1747045759996,0.01917646,104290.0,104280.0,1.22751437]
[1747045760207,0.01917618,104290.0,104280.0,1.66569437]
[1747045760414,0.03835301,104290.0,104280.0,1.66569437]
[1747045760659,0.01917618,104290.0,104280.0,1.66569437]
[1747045760931,0.02876455,104290.0,104280.0,1.66569437]
[1747045761136,0.009588,104290.0,104280.0,1.41989334]
[1747045761365,0.009588,104290.0,104280.0,1.32569437]
[1747045761478,0.01917618,104290.0,104280.0,1.32569437]
[1747045761717,0.0191759,104290.0,104280.0,1.33081562]
[1747045762533,0.02876427,104290.0,104280.0,1.33081562]
[1747045763830,0.0191759,104290.0,104280.0,1.33081562]
[1747045764156,0.0287639,104290.0,104280.0,1.33081562]
[1747045765367,0.04794073,104290.0,104280.0,1.30651562]
[1747045765586,0.04794073,104290.0,104280.0,1.28241562]
[1747045766329,0.03835227,104290.0,104280.0,1.28241562]
[1747045767135,0.04794073,104290.0,104280.0,1.28241562]
[1747045768737,0.03835227,104290.0,104280.0,1.28241562]
[1747045769197,0.0287639,104290.0,104280.0,1.33171562]
[1747045769442,0.03835199,104290.0,104280.0,1.33171562]
[1747045769980,0.02876372,104290.0,104280.0,1.67171562]
[1747045770190,0.0383519,104290.0,104280.0,1.67171562]
[1747045770387,0.02876372,104290.0,104280.0,1.67171562]
[1747045770650,0.03835199,104290.0,104280.0,1.67171562]
[1747045771172,0.03835199,104290.0,104280.0,1.64661562]
[1747045771598,0.0383519,104290.0,104280.0,1.64661562]
[1747045773243,0.04794027,104290.0,104280.0,1.64661562]
[1747045773831,0.0383519,104290.0,104280.0,1.64661562]
[1747045774090,0.04794027,104290.0,104280.0,1.64661562]
[1747045774290,0.04794027,104290.0,104280.0,1.62241562]
[1747045774499,0.0383519,104290.0,104280.0,1.22241562]
[1747045776624,0.27922193,104300.0,104290.0,0.22053822]
[1747045776872,0.26963467,104300.0,104290.0,0.3417668]
[1747045777769,0.26504713,104300.0,104290.0,0.3417668]
[1747045779235,0.26504713,104300.0,104290.0,0.4582868]
[1747045779432,0.26904713,104300.0,104290.0,0.4582868]
[1747045781764,0.2594595,104300.0,104290.0,0.44869853]
[1747045787443,0.2594595,104300.0,104290.0,0.45828662]
[1747045787444,0.21994695,104300.0,104290.0,0.45828662]
[1747045788238,0.21994695,104300.0,104290.0,0.34664101]
[1747045788415,0.21994695,104300.0,104290.0,0.45828662]
[1747045789204,0.009,104300.0,104290.0,0.85967462]
[1747045789575,0.01858699,104300.0,104290.0,0.85967462]
[1747045789778,0.01858699,104300.0,104290.0,1.25967462]
[1747045789969,0.02317416,104300.0,104290.0,1.25967462]
[1747045790154,0.01917416,104300.0,104290.0,1.25967462]
[1747045790921,0.02217416,104300.0,104290.0,1.25967462]
[1747045792277,0.01258699,104300.0,104290.0,1.25967462]
[1747045792592,0.01917416,104300.0,104290.0,1.25967462]
[1747045793024,0.02017416,104300.0,104290.0,1.25967462]
[1747045794021,0.02017416,104300.0,104290.0,1.67371462]
[1747045794277,0.27742989,104300.0,104290.0,1.61232662]
[1747045794479,0.10293651,104300.0,104290.0,1.73823462]
[1747045794710,0.29660552,104300.0,104290.0,1.73823489]
[1747045794863,0.07623715,104300.0,104290.0,1.74782289]
[1747045795090,0.05085097,104300.0,104290.0,1.74782289]
[1747045795331,0.05085097,104300.0,104290.0,1.7508181]
[1747045795469,0.04126334,104300.0,104290.0,1.7508181]
[1747045798663,0.04126334,104300.0,104290.0,1.3367781]
[1747045800645,0.26784363,104300.0,104290.0,0.86422379]
[1747045800859,0.26592981,104300.0,104290.0,0.24074379]
[1747045801104,0.26592981,104300.0,104290.0,0.36657243]
[1747045801325,0.26592981,104300.0,104290.0,0.55834537]
[1747045801553,0.26592981,104300.0,104290.0,0.5871101]
[1747045801780,0.0105869,104300.0,104290.0,0.5966981]
[1747045801993,0.02017435,104300.0,104290.0,0.5966981]
[1747045802208,0.23110361,104300.0,104290.0,0.5871101]
[1747045802423,0.02976152,104300.0,104290.0,0.5966981]
[1747045802627,0.02017407,104300.0,104290.0,0.5966981]
[1747045802866,0.0105869,104300.0,104290.0,0.5966981]
[1747045803092,0.02017407,104300.0,104290.0,0.6238981]
[1747045803274,0.0105869,104300.0,104290.0,0.9904981]
[1747045803580,0.02976106,104300.0,104290.0,0.9904981]
[1747045803836,0.03934842,104300.0,104290.0,0.9904981]
[1747045804053,0.03934842,104300.0,104290.0,0.98750289]
[1747045804228,0.03934832,104300.0,104290.0,0.98750289]
[1747045804884,0.03934832,104300.0,104290.0,1.38750289]
[1747045805227,0.02976106,104300.0,104290.0,1.38750289]
[1747045805760,0.03934842,104300.0,104290.0,1.39049807]
[1747045805895,0.03934842,104300.0,104290.0,1.33669807]
[1747045806094,0.02976106,104300.0,104290.0,1.33669807]
[1747045806306,0.04893577,104300.0,104290.0,1.33669807]
[1747045806504,0.04893577,104300.0,104290.0,1.33370289]
[1747045806709,0.03934832,104300.0,104290.0,1.33370289]
[1747045806921,0.03934832,104300.0,104290.0,1.21247431]
[1747045808201,0.02976106,104300.0,104290.0,1.23847431]
[1747045808413,0.03934842,104300.0,104290.0,1.23847431]
[1747045808613,0.02976106,104300.0,104290.0,1.23847431]
[1747045808821,0.001,104300.0,104290.0,1.23847431]
[1747045808998,0.02017407,104300.0,104290.0,1.26597431]
[1747045809371,0.02976143,104300.0,104290.0,1.23847431]
[1747045809861,0.02976143,104300.0,104290.0,1.21247431]
[1747045810426,0.0105869,104300.0,104290.0,1.21247431]
[1747045810645,0.02976133,104300.0,104290.0,1.21247431]
[1747045811032,0.02017407,104300.0,104290.0,1.21247431]
[1747045812094,0.03934887,104300.0,104290.0,1.21247431]
[1747045812308,0.27893034,104300.0,104290.0,1.18359004]
[1747045812523,0.27701652,104300.0,104290.0,1.1961734]
[1747045812743,0.28660415,104300.0,104290.0,1.21534949]
[1747045813446,0.0948496,104300.0,104290.0,1.21534949]
[1747045813664,0.09676342,104300.0,104290.0,1.21534949]
[1747045814814,0.08717579,104300.0,104290.0,1.21534949]
[1747045815045,0.05947579,104300.0,104290.0,1.21534949]
[1747045815264,0.03167579,104300.0,104290.0,1.21534949]
[1747045816175,0.04126342,104300.0,104290.0,1.21534949]
[1747045816631,0.09316342,104300.0,104290.0,1.21534949]
[1747045817171,0.29450569,104300.0,104290.0,1.21534949]
[1747045817388,0.0912496,104300.0,104290.0,1.21534949]
[1747045817596,0.28491797,104300.0,104290.0,1.18658522]
[1747045817810,0.28300415,104300.0,104290.0,1.20576186]
[1747045818211,0.28300415,104300.0,104290.0,0.81535004]
[1747045818877,0.28300415,104300.0,104290.0,1.21535004]
[1747045819556,0.28300415,104300.0,104290.0,0.81534949]
[1747045819974,0.08166197,104300.0,104290.0,1.21534903]
[1747045820190,0.27533034,104300.0,104290.0,1.21534903]
[1747045820406,0.28300415,104300.0,104290.0,1.21534903]
[1747045820631,0.29259187,104300.0,104290.0,1.20576103]
[1747045821954,0.2830047,104300.0,104290.0,1.17699649]
[1747045822184,0.2830047,104300.0,104290.0,0.8561734]
[1747045822398,0.2830047,104300.0,104290.0,0.86576158]
[1747045822814,0.2830047,104300.0,104290.0,0.87534967]
[1747045824065,0.2830047,104300.0,104290.0,0.86576158]
[1747045824272,0.27341744,104300.0,104290.0,0.85617331]
[1747045824703,0.27341744,104300.0,104290.0,0.4657614]
[1747045824925,0.27341744,104300.0,104290.0,0.46276622]
[1747045825136,0.04687517,104300.0,104290.0,0.47235422]
[1747045825345,0.24054354,104300.0,104290.0,0.87235422]
[1747045825557,0.04687517,104300.0,104290.0,0.87235422]
[1747045825771,0.02208899,104300.0,104290.0,0.87235422]
[1747045826799,0.21384354,104300.0,104290.0,0.87235422]
[1747045826999,0.21192972,104300.0,104290.0,0.87235422]
[1747045827231,0.26362972,104300.0,104290.0,0.11652]
[1747045827432,0.26362972,104300.0,104290.0,0.23252]
[1747045828805,0.26337565,104300.0,104290.0,0.43388158]
[1747045829549,0.26337565,104300.0,104290.0,0.23252]
[1747045831575,0.25378811,104300.0,104290.0,0.23252]
[1747045833633,0.25378811,104300.0,104290.0,0.23551552]
[1747045834271,0.25378811,104300.0,104290.0,0.23252]
[1747045836256,0.24420048,104300.0,104290.0,0.23252]
[1747045839254,0.19250048,104300.0,104290.0,0.43388158]
[1747045839456,0.20400184,104300.0,104290.0,0.23252]
[1747045839782,0.20208802,104300.0,104290.0,0.23252]
[1747045840027,0.20208802,104300.0,104290.0,0.42429294]
[1747045840253,0.20208802,104300.0,104290.0,0.44346977]
[1747045840458,0.21167528,104300.0,104290.0,0.4338814]
[1747045840670,0.21167528,104300.0,104290.0,0.43388149]
[1747045840895,0.21167528,104300.0,104290.0,0.44346995]
[1747045841140,0.01992028,104300.0,104290.0,0.46264622]
[1747045841347,0.03909499,104300.0,104290.0,0.51564622]
[1747045841566,0.24043726,104300.0,104290.0,0.5156464]
[1747045841774,0.24043726,104300.0,104290.0,0.52523449]
[1747045843841,0.23084954,104300.0,104290.0,0.52523449]
[1747045844063,0.24043717,104300.0,104290.0,0.52523449]
[1747045844463,0.24043717,104300.0,104290.0,0.5156464]
[1747045844959,0.23085027,104300.0,104290.0,0.5156464]
[1747045845225,0.24043799,104300.0,104290.0,0.5156464]
[1747045845613,0.24043799,104300.0,104290.0,0.50605822]
[1747045845813,0.24043799,104300.0,104290.0,0.5156464]
[1747045846628,0.23085082,104300.0,104290.0,0.49646995]
[1747045846835,0.22126337,104300.0,104290.0,0.44346995]
[1747045847200,0.22126337,104300.0,104290.0,0.45305832]
[1747045847461,0.22126337,104300.0,104290.0,0.46264659]
[1747045847685,0.22126337,104300.0,104290.0,0.45305832]
[1747045847823,0.22126337,104300.0,104290.0,0.44346995]
[1747045848028,0.22126337,104300.0,104290.0,0.45305832]
[1747045848496,0.22126337,104300.0,104290.0,0.85305832]
[1747045849471,0.22126337,104300.0,104290.0,0.24210864]
[1747045849906,0.22126337,104300.0,104290.0,0.25169719]
[1747045850114,0.22126337,104300.0,104290.0,0.84347013]
[1747045850744,0.22126337,104300.0,104290.0,0.85305859]
[1747045851169,0.22126337,104300.0,104290.0,0.84347013]
[1747045851454,0.21167583,104300.0,104290.0,0.84347013]
[1747045853781,0.21167583,104300.0,104290.0,0.83388158]
[1747045854230,0.21167583,104300.0,104290.0,0.84347013]
[1747045855029,0.21167583,104300.0,104290.0,0.85305859]
[1747045855865,0.21167583,104300.0,104290.0,0.84347013]
[1747045856427,0.2020882,104300.0,104290.0,0.84347013]
[1747045859302,0.2020882,104300.0,104290.0,0.63252]
[1747045859473,0.19250048,104300.0,104290.0,0.64210864]
[1747045859713,0.1944143,104300.0,104290.0,0.64210864]
[1747045860515,0.1944143,104300.0,104290.0,0.83388158]
[1747045860729,0.1944143,104300.0,104290.0,0.84347004]
[1747045860941,0.1944143,104300.0,104290.0,0.83388158]
[1747045861158,0.1944143,104300.0,104290.0,0.84347013]
[1747045864253,0.1944143,104300.0,104290.0,0.87087013]
[1747045864440,0.20208811,104300.0,104290.0,0.90685859]
[1747045864649,0.20208811,104300.0,104290.0,0.91644696]
[1747045864867,0.21167547,104300.0,104290.0,0.91644696]
[1747045865253,0.21167547,104300.0,104290.0,0.92603523]
[1747045865465,0.01033283,104300.0,104290.0,1.26603459]
[1747045865699,0.02950727,104300.0,104290.0,1.26603459]
[1747045865871,0.03909472,104300.0,104290.0,1.26603459]
[1747045866090,0.24043681,104300.0,104290.0,1.25644659]
[1747045866307,0.24043763,104300.0,104290.0,1.26603431]
[1747045866568,0.24043754,104300.0,104290.0,1.20264622]
[1747045866764,0.23085046,104300.0,104290.0,1.21223422]
[1747045866985,0.22126283,104300.0,104290.0,1.21223422]
[1747045867352,0.01992074,104300.0,104290.0,1.21223422]
[1747045867985,0.01992074,104300.0,104290.0,0.81223422]
[1747045868361,0.01992074,104300.0,104290.0,0.84003422]
[1747045869646,0.01992037,104300.0,104290.0,0.84003422]
[1747045870990,0.01992037,104300.0,104290.0,0.86773422]
[1747045871403,0.01992018,104300.0,104290.0,0.7959866]
[1747045871852,0.01992018,104300.0,104290.0,0.67468128]
[1747045872207,0.01992018,104300.0,104290.0,0.86645422]
[1747045873091,0.02950744,104300.0,104290.0,0.86645422]
[1747045873514,0.01992018,104300.0,104290.0,0.86645422]
[1747045874102,0.02950754,104300.0,104290.0,1.26645422]
[1747045874506,0.01992018,104300.0,104290.0,1.26645422]
[1747045874710,0.02950744,104300.0,104290.0,1.26645422]
[1747045876671,0.0390948,104300.0,104290.0,1.26645422]
[1747045877322,0.02950744,104300.0,104290.0,1.26645422]
[1747045878480,0.02950754,104300.0,104290.0,1.26645422]
[1747045878643,0.01992018,104300.0,104290.0,1.26645422]
[1747045879994,0.02950744,104300.0,104290.0,1.26645422]
[1747045882844,0.03909498,104300.0,104290.0,1.26645422]
[1747045883093,0.01033301,104300.0,104290.0,1.26645422]
[1747045883329,0.02950754,104300.0,104290.0,1.26645422]
[1747045884278,0.01992018,104300.0,104290.0,1.26645422]
[1747045884494,0.01033301,104300.0,104290.0,1.26645422]
[1747045884719,0.01992009,104300.0,104290.0,1.26645422]
[1747045886211,0.01992,104300.0,104290.0,1.26645422]
[1747045886423,0.01033283,104300.0,104290.0,1.26645422]
[1747045886647,0.01991991,104300.0,104290.0,1.26645422]
[1747045887083,0.02950717,104300.0,104290.0,1.26645422]
[1747045887325,0.01991991,104300.0,104290.0,1.26645422]
[1747045887954,0.01033283,104300.0,104290.0,1.26645422]
[1747045888156,0.01991991,104300.0,104290.0,1.26645422]
[1747045888373,0.01033283,104300.0,104290.0,1.26645422]
[1747045888606,0.01991991,104300.0,104290.0,1.26645422]
[1747045889684,0.03909444,104300.0,104290.0,1.23875422]
[1747045889884,0.03909444,104300.0,104290.0,1.21095422]
[1747045890536,0.02950708,104300.0,104290.0,1.21095422]
[1747045890771,0.03909444,104300.0,104290.0,1.21095422]
[1747045890977,0.02950708,104300.0,104290.0,1.21095422]
[1747045891653,0.03909444,104300.0,104290.0,1.21095422]
[1747045891850,0.02950708,104300.0,104290.0,1.21095422]
[1747045892900,0.03909444,104300.0,104290.0,1.21095422]
[1747045893114,0.02950708,104300.0,104290.0,1.21095422]
[1747045893327,0.03909444,104300.0,104290.0,1.21095422]
[1747045893525,0.02950708,104300.0,104290.0,1.21095422]
[1747045893725,0.03909434,104300.0,104290.0,1.21095422]
[1747045894609,0.0486817,104300.0,104290.0,1.21095422]
[1747045894890,0.03909434,104300.0,104290.0,1.21095422]
[1747045897002,0.04868188,104300.0,104290.0,1.21095422]
[1747045897220,0.2533614,104290.0,104280.0,0.42557753]
[1747045897425,0.2533614,104290.0,104280.0,0.82072853]
[1747045897640,0.2533614,104290.0,104280.0,0.58992853]
[1747045897867,0.2533614,104290.0,104280.0,0.40668853]
[1747045898074,0.2533614,104290.0,104280.0,0.4096841]
[1747045898291,0.2533614,104290.0,104280.0,0.1788841]
[1747045898453,0.2533614,104290.0,104280.0,0.4106841]
[1747045898852,0.2533614,104290.0,104280.0,0.4116841]
[1747045899336,0.2533614,104290.0,104280.0,0.1808841]
[1747045899615,0.2533614,104290.0,104280.0,0.4116841]
[1747045902336,0.2533614,104290.0,104280.0,0.42127366]
[1747045902558,0.2533614,104290.0,104280.0,0.4116841]
[1747045902770,0.24377294,104290.0,104280.0,0.4116841]
[1747045903800,0.24377294,104290.0,104280.0,0.61306481]
[1747045903931,0.24377294,104290.0,104280.0,0.61306499]
[1747045904144,0.24377294,104290.0,104280.0,0.42127366]
[1747045904376,0.21094958,104290.0,104280.0,0.63224329]
[1747045904644,0.22053822,104290.0,104280.0,0.63224329]
[1747045904866,0.21094958,104290.0,104280.0,0.63224338]
[1747045905078,0.01917591,104290.0,104280.0,0.64183175]
[1747045905292,0.03835237,104290.0,104280.0,0.66803175]
[1747045905913,0.22051625,104300.0,104290.0,0.21094976]
[1747045906171,0.23010397,104300.0,104290.0,0.21094976]
[1747045906379,0.23010397,104300.0,104290.0,0.20136149]
[1747045906584,0.27441689,104300.0,104290.0,0.20136158]
[1747045906754,0.22051689,104300.0,104290.0,0.21095004]
[1747045907797,0.22151689,104300.0,104290.0,0.21095004]
[1747045908410,0.02017389,104300.0,104290.0,0.23012631]
[1747045908595,0.0393486,104300.0,104290.0,0.28222631]
[1747045909336,0.02017389,104300.0,104290.0,0.28222631]
[1747045909633,0.02976115,104300.0,104290.0,0.28222631]
[1747045909987,0.02976106,104300.0,104290.0,0.28222631]
[1747045910193,0.02017389,104300.0,104290.0,0.28222631]
[1747045910405,0.02976115,104300.0,104290.0,0.62222631]
[1747045911467,0.0393486,104300.0,104290.0,0.62222631]
[1747045911642,0.02976115,104300.0,104290.0,0.62222631]
[1747045911842,0.0105869,104300.0,104290.0,1.02222631]
[1747045912042,0.02017407,104300.0,104290.0,1.02222631]
[1747045914360,0.0105869,104300.0,104290.0,1.02222631]
[1747045914557,0.02017398,104300.0,104290.0,1.02222631]
[1747045914759,0.0105869,104300.0,104290.0,1.02222631]
[1747045915356,0.001,104300.0,104290.0,1.11808061]
[1747045917512,0.001,104300.0,104290.0,1.23348061]
[1747045919619,0.001,104300.0,104290.0,1.76449646]
[1747045920526,0.01917021,104320.0,104310.0,0.56049548]
[1747045920730,0.01931722,104320.0,104310.0,0.96506401]
[1747045920947,0.22062034,104320.0,104310.0,0.96506401]
[1747045921242,0.23979174,104320.0,104310.0,0.96506419]
[1747045921424,0.23020595,104320.0,104310.0,0.96506419]
[1747045921668,0.23020595,104320.0,104310.0,1.00633514]
[1747045921854,0.23320595,104320.0,104310.0,1.00633514]
[1747045922059,0.23320595,104320.0,104310.0,1.0159213]
[1747045922292,0.23320595,104320.0,104310.0,1.00633514]
[1747045922731,0.24279183,104320.0,104310.0,0.97757611]
[1747045922925,0.24279174,104320.0,104310.0,1.00633532]
[1747045923118,0.24479174,104320.0,104310.0,1.00633532]
[1747045923430,0.24479174,104320.0,104310.0,0.99674907]
[1747045923676,0.26893647,104320.0,104310.0,0.74452853]
[1747045923871,0.26893647,104320.0,104310.0,0.51388853]
[1747045924090,0.26893647,104320.0,104310.0,0.74452853]
[1747045924524,0.25935068,104320.0,104310.0,0.74452853]
[1747045925151,0.25935068,104320.0,104310.0,0.75411533]
[1747045925360,0.25935068,104320.0,104310.0,0.74452853]
[1747045926028,0.25935068,104320.0,104310.0,0.75411533]
[1747045926275,0.25935068,104320.0,104310.0,0.74452853]
[1747045926720,0.25935068,104320.0,104310.0,0.75411524]
[1747045926991,0.25935068,104320.0,104310.0,0.75411533]
[1747045927966,0.25935068,104320.0,104310.0,0.74452853]
[1747045928410,0.41859268,104320.0,104310.0,0.17388853]
[1747045929375,0.25935068,104320.0,104310.0,0.17388853]
[1747045931842,0.35501646,104320.0,104310.0,0.17388853]
[1747045932080,0.51425846,104320.0,104310.0,0.17388853]
[1747045932304,0.35501646,104320.0,104310.0,0.17388853]
[1747045940856,0.51425846,104320.0,104310.0,0.28904853]
[1747045941169,0.35501646,104320.0,104310.0,0.28904853]
[1747045947534,0.35501646,104320.0,104310.0,0.40424853]
[1747045950898,0.21092926,104300.0,104290.0,0.49683457]
[1747045951110,0.22051662,104300.0,104290.0,1.4232274]
[1747045951305,0.22051662,104300.0,104290.0,1.44240441]
[1747045951681,0.23010434,104300.0,104290.0,1.44240441]
[1747045952083,0.23010434,104300.0,104290.0,1.45199278]
[1747045952544,0.23010434,104300.0,104290.0,1.45299278]
[1747045953010,0.23010434,104300.0,104290.0,1.45499278]
[1747045953904,0.2109299,104300.0,104290.0,0.54813446]
[1747045954418,0.2109299,104300.0,104290.0,0.57543446]
[1747045954684,0.2109299,104300.0,104290.0,0.5850231]
[1747045954934,0.20134227,104300.0,104290.0,0.54813446]
[1747045955174,0.20134227,104300.0,104290.0,0.23332]
[1747045955175,0.25744227,104300.0,104290.0,0.23332]
[1747045955410,0.51253857,104300.0,104290.0,0.03751208]
[1747045955660,0.59062872,104300.0,104290.0,0.04050771]
[1747045955914,0.51924804,104300.0,104290.0,0.04050771]
[1747045956142,0.51924804,104300.0,104290.0,0.03750771]
[1747045956370,0.54990318,104300.0,104290.0,0.03750771]
[1747045956607,0.55190318,104300.0,104290.0,0.03750771]
[1747045957073,0.39566118,104300.0,104290.0,0.03750771]
[1747045958332,0.71414518,104300.0,104290.0,0.00299563]
[1747045958516,0.72868603,104300.0,104290.0,0.00299563]
[1747045959377,0.56944403,104300.0,104290.0,0.00299563]
[1747045959602,0.39566118,104300.0,104290.0,0.00299563]
[1747045959812,0.55490318,104300.0,104290.0,0.00299563]
[1747045960460,0.39566118,104300.0,104290.0,0.00299563]
[1747045960717,0.2013614,104290.0,104280.0,0.03651208]
[1747045960941,0.2972157,104290.0,104280.0,0.03651208]
[1747045961185,0.3534157,104290.0,104280.0,0.03651208]
[1747045962328,0.3544157,104290.0,104280.0,0.03950807]
[1747045964785,0.36896936,104290.0,104280.0,0.03950807]
[1747045965036,0.60327347,104290.0,104280.0,0.03950807]
[1747045965267,0.54275221,104290.0,104280.0,0.00499599]
[1747045965565,0.54944591,104290.0,104280.0,0.00499599]
[1747045966006,0.54844591,104290.0,104280.0,0.002]
[1747045966225,0.39020391,104290.0,104280.0,0.002]
[1747045966448,0.53990506,104290.0,104280.0,0.003]
[1747045966689,0.37966306,104290.0,104280.0,0.003]
[1747045967188,0.38566306,104290.0,104280.0,0.004]
[1747045967396,0.23016999,104270.0,104260.0,0.48007853]
[1747045967616,0.23016999,104270.0,104260.0,0.48007862]
[1747045968540,0.23016999,104270.0,104260.0,0.47048768]
[1747045968759,0.22258034,104270.0,104260.0,0.72296992]
[1747045968980,0.22458034,104270.0,104260.0,0.7229701]
[1747045969438,0.22458034,104270.0,104260.0,0.48022572]
[1747045969614,0.21299041,104270.0,104260.0,0.74491402]
[1747045969819,0.21099041,104270.0,104260.0,0.74491402]
[1747045969999,0.21199041,104270.0,104260.0,0.88429047]
[1747045971125,0.21199041,104270.0,104260.0,0.8938815]
[1747045971347,0.22158025,104270.0,104260.0,0.91306329]
[1747045971558,0.02018014,104270.0,104260.0,0.90347244]
[1747045971778,0.03936018,104270.0,104260.0,0.9130632]
[1747045972006,0.2311699,104270.0,104260.0,0.9130632]
[1747045972492,0.23117073,104270.0,104260.0,0.8938815]
[1747045972705,0.23117073,104270.0,104260.0,0.90347244]
[1747045972931,0.23117073,104270.0,104260.0,0.91306329]
[1747045973183,0.02977053,104270.0,104260.0,0.91306274]
[1747045973407,0.22158025,104270.0,104260.0,0.91306274]
[1747045973869,0.23117073,104270.0,104260.0,0.90347198]
[1747045974310,0.23117073,104270.0,104260.0,0.63195505]
[1747045974537,0.21199059,104270.0,104260.0,1.28429065]
[1747045974763,0.21199059,104270.0,104260.0,0.87469943]
[1747045975006,0.19280972,104270.0,104260.0,0.87469943]
[1747045975234,0.19280972,104270.0,104260.0,0.70869419]
[1747045975469,0.19280972,104270.0,104260.0,0.49738784]
[1747045975704,0.19280972,104270.0,104260.0,0.11526701]
[1747045975931,0.24840972,104270.0,104260.0,0.23034701]
[1747045979396,0.19280972,104270.0,104260.0,0.47309139]
[1747045979820,0.19280972,104270.0,104260.0,0.69211951]
[1747045980083,0.19280972,104270.0,104260.0,0.74129842]
[1747045980304,0.001,104270.0,104260.0,0.75088945]
[1747045980497,0.24075992,104270.0,104260.0,0.76048021]
[1747045980754,0.23116944,104270.0,104260.0,0.89985666]
[1747045981000,0.24076066,104270.0,104260.0,0.89985666]
[1747045981230,0.24076066,104270.0,104260.0,0.89985684]
[1747045981459,0.22158089,104270.0,104260.0,0.88067505]
[1747045981682,0.22158089,104270.0,104260.0,0.8998574]
[1747045981880,0.22158089,104270.0,104260.0,0.90944843]
[1747045982551,0.22158089,104270.0,104260.0,0.90944788]
[1747045983199,0.22158043,104270.0,104260.0,0.90944788]
[1747045983449,0.001,104270.0,104260.0,0.90944733]
[1747045983665,0.001,104270.0,104260.0,2.44784025]
[1747045983896,0.001,104270.0,104260.0,2.11302425]
[1747045984120,0.001,104270.0,104260.0,1.94564325]
[1747045985042,0.03835631,104280.0,104270.0,0.27368006]
[1747045985261,0.00958873,104280.0,104270.0,0.55093652]
[1747045985511,0.002,104290.0,104280.0,0.22055891]